fUST/lending_fUST_20240203
["ID","MTS","AMOUNT","RATE_DAILY","PERIOD"]
[313190230,1706907039670,-500.0,0.00029315,2]
[313190231,1706907039679,-500.0,0.00029315,2]
[313190232,1706907039689,-584.08,0.00029315,2]
[313190233,1706907039698,-500.0,0.00029315,2]
[313190234,1706907039708,-1471.09,0.00029315,2]
[313190235,1706907039717,-1427.05,0.00029315,2]
[313190236,1706907039726,-500.0,0.00029315,2]
[313190237,1706907039735,-2055.24,0.00029315,2]
[313190238,1706907039745,-500.0,0.00029315,2]
[313190239,1706907039754,-1030.51,0.00029315,2]
[313190240,1706907039764,-500.0,0.00029315,2]
[313190241,1706907039773,-923.05,0.00029315,2]
[313190242,1706907039783,-500.0,0.00029315,2]
[313190243,1706907039792,-765.40311766,0.00029589,2]
[313190244,1706907039801,-242.43896622,0.00029589,5]
[313190245,1706907039811,-250.0,0.00029589,5]
[313190246,1706907039820,-179.33411359,0.00029589,5]
[313190247,1706907039829,-500.0,0.00029589,2]
[313190248,1706907039839,-500.0,0.00029589,2]
[313190249,1706907039848,-500.0,0.00029589,2]
[313190250,1706907039858,-584.08,0.00029589,2]
[313190251,1706907039867,-500.0,0.00029589,2]
[313190252,1706907039875,-1471.09,0.00029589,2]
[313190253,1706907039885,-1427.05,0.00029589,2]
[313190254,1706907039894,-500.0,0.00029589,2]
[313190255,1706907039904,-2055.24,0.00029589,2]
[313190256,1706907039913,-500.0,0.00029589,2]
[313190257,1706907039922,-1030.51,0.00029589,2]
[313190258,1706907039931,-500.0,0.00029589,2]
[313190259,1706907039940,-923.05,0.00029589,2]
[313190260,1706907039949,-500.0,0.00029589,2]
[313190261,1706907039958,-832.5713999,0.00029589,5]
[313190262,1706907039967,-155.0294556,0.0002971,3]
[313190263,1706907039976,-500.0,0.00029863,2]
[313190264,1706907039985,-500.0,0.00029863,2]
[313190265,1706907039994,-500.0,0.00029863,2]
[313190266,1706907040003,-584.08,0.00029863,2]
[313190267,1706907040012,-500.0,0.00029863,2]
[313190268,1706907040021,-1471.09,0.00029863,2]
[313190270,1706907040030,-1427.05,0.00029863,2]
[313190271,1706907040039,-500.0,0.00029863,2]
[313190273,1706907040048,-2055.24,0.00029863,2]
[313190275,1706907040060,-500.0,0.00029863,2]
[313190277,1706907040069,-1030.51,0.00029863,2]
[313190278,1706907040078,-500.0,0.00029863,2]
[313190279,1706907040087,-923.05,0.00029863,2]
[313190280,1706907040096,-500.0,0.00029863,2]
[313190281,1706907040106,-466.2867366,0.000299,2]
[313190282,1706907040115,-151.01963255,0.00029904,7]
[313190283,1706907040124,-517.22300754,0.00029998,2]
[313190284,1706907040135,-172.700431,0.0003,3]
[313190285,1706907040145,-328129.00137063,0.0003,30]
[313190286,1706907040158,-9528.99621733,0.0003,30]
[313190323,1706907046699,-500.0,0.00027397,2]
[313190326,1706907046710,-500.0,0.00027671,2]
[313190327,1706907046719,-177.89151117,0.00027945,2]
[313190328,1706907046730,-1238.11158306,0.00029999,2]
[313190362,1706907734631,-294.02081451,0.00022,4]
[313190363,1706907734657,-111.97918549,0.00022353,3]
[313190364,1706907768317,-387.0,0.00022353,3]
[313190367,1706907781512,-0.73,0.00022353,3]
[313190368,1706907781537,-323.11,0.00022353,3]
[313190369,1706907787776,224.38,0.00022353,3]
[313190373,1706907837905,-296.0,0.00022353,3]
[313190428,1706908234885,-155.0356582,0.00021296,2]
[313190429,1706908234894,-243.60640262,0.00021296,2]
[313190431,1706908234903,-357.57083193,0.00021296,2]
[313190432,1706908234913,-609.08979656,0.00021297,2]
[313190433,1706908234923,-155.0356582,0.00021298,2]
[313190434,1706908234932,-182.53,0.000213,3]
[313190435,1706908234941,-152.11,0.000213,3]
[313190437,1706908234951,-9280.35700162,0.00021307,2]
[313190440,1706908234962,-9656.85680426,0.00021307,2]
[313190441,1706908234972,-20909.96703579,0.00021308,2]
[313190442,1706908234981,-20935.35188878,0.00021309,2]
[313190443,1706908234990,-21722.78800122,0.0002131,2]
[313190444,1706908235000,-24900.0,0.00021319,2]
[313190445,1706908235009,-155.00155002,0.00022241,2]
[313190447,1706908235017,-200.0,0.0002345,7]
[313190448,1706908235027,-1996.50298693,0.00024059,2]
[313190450,1706908235037,-5763.96166341,0.00024059,2]
[313190486,1706908237944,-500.0,0.00021295,2]
[313190487,1706908237954,-1770.75786189,0.00024059,2]
[313190488,1706908237970,-1196.93703769,0.00024059,2]
[313190489,1706908237979,-838.81206769,0.00024059,2]
[313190490,1706908237988,-213.46268132,0.00024059,2]
[313190491,1706908237998,-739.78365226,0.00024059,2]
[313190492,1706908238007,-1032.02745041,0.00024059,2]
[313190493,1706908238016,-176.63027167,0.00024059,2]
[313190494,1706908238025,-280.88932072,0.00024059,2]
[313190495,1706908238034,-310.02325349,0.0002406,2]
[313190496,1706908238043,-521.0,0.0002406,2]
[313190497,1706908238052,-35000.0,0.00024061,2]
[313190498,1706908238062,-252.06090981,0.00024349,2]
[313190499,1706908238072,-224.0,0.00025795,7]
[313190500,1706908238082,-181.771429,0.000269,2]
[313190501,1706908238091,-155.02015262,0.00026997,4]
[313190502,1706908238101,-760.57,0.00027387,3]
[313190503,1706908238111,-500.0,0.00027397,2]
[313190504,1706908238120,-500.0,0.00027397,2]
[313190505,1706908238130,-500.0,0.00027397,2]
[313190506,1706908238139,-500.0,0.00027397,2]
[313190507,1706908238148,-500.0,0.00027397,2]
[313190508,1706908238157,-166.001232,0.00027397,2]
[313190509,1706908238166,-666.7,0.00027397,2]
[313190510,1706908238176,-500.0,0.00027397,2]
[313190511,1706908238185,-500.0,0.00027397,2]
[313190512,1706908238195,-500.0,0.00027397,2]
[313190513,1706908238204,-500.0,0.00027397,2]
[313190514,1706908238214,-500.0,0.00027397,2]
[313190515,1706908238223,-500.0,0.00027397,2]
[313190516,1706908238233,-500.0,0.00027397,2]
[313190517,1706908238242,-553.3347245,0.00027397,2]
[313190518,1706908238251,-500.0,0.00027397,2]
[313190519,1706908238260,-500.0,0.00027397,2]
[313190520,1706908238270,-500.0,0.00027397,2]
[313190521,1706908238279,-500.0,0.00027397,2]
[313190522,1706908238289,-500.0,0.00027397,2]
[313190523,1706908238298,-500.0,0.00027397,2]
[313190524,1706908238307,-500.0,0.00027397,2]
[313190525,1706908238316,-500.0,0.00027397,2]
[313190526,1706908238325,-500.0,0.00027397,2]
[313190527,1706908238334,-615.16,0.00027397,2]
[313190528,1706908238343,-616.94,0.00027397,2]
[313190529,1706908238352,-500.0,0.00027397,2]
[313190530,1706908238362,-500.0,0.00027397,2]
[313190531,1706908238371,-500.0,0.00027397,2]
[313190532,1706908238380,-500.0,0.00027397,2]
[313190533,1706908238390,-500.0,0.00027397,2]
[313190534,1706908238399,-500.0,0.00027397,2]
[313190535,1706908238409,-512.39,0.00027397,2]
[313190536,1706908238421,-500.0,0.00027397,2]
[313190537,1706908238430,-807.2,0.00027397,2]
[313190538,1706908238439,-500.0,0.00027397,2]
[313190539,1706908238448,-500.0,0.00027397,2]
[313190540,1706908238457,-590.97,0.00027397,2]
[313190541,1706908238466,-500.0,0.00027397,2]
[313190542,1706908238475,-500.0,0.00027397,2]
[313190543,1706908238484,-500.0,0.00027397,2]
[313190544,1706908238494,-1767.25,0.00027397,2]
[313190545,1706908238503,-500.0,0.00027397,2]
[313190546,1706908238512,-500.0,0.00027397,2]
[313190547,1706908238521,-1836.31,0.00027397,2]
[313190548,1706908238530,-500.0,0.00027397,2]
[313190549,1706908238539,-500.0,0.00027397,2]
[313190550,1706908238548,-2610.64,0.00027397,2]
[313190551,1706908238557,-500.0,0.00027397,2]
[313190552,1706908238566,-500.0,0.00027397,2]
[313190553,1706908238575,-500.0,0.00027397,2]
[313190554,1706908238584,-500.0,0.00027397,2]
[313190555,1706908238593,-500.0,0.00027397,2]
[313190556,1706908238602,-500.0,0.00027397,2]
[313190557,1706908238612,-500.0,0.00027397,2]
[313190558,1706908238621,-500.0,0.00027397,2]
[313190559,1706908238630,-1325.85,0.00027397,2]
[313190560,1706908238639,-1273.71,0.00027397,2]
[313190561,1706908238648,-389.82,0.00027397,2]
[313190562,1706908238658,-500.0,0.00027397,2]
[313190563,1706908238667,-500.0,0.00027397,2]
[313190564,1706908238677,-500.0,0.00027671,2]
[313190565,1706908238686,-500.0,0.00027671,2]
[313190566,1706908238695,-500.0,0.00027671,2]
[313190567,1706908238704,-500.0,0.00027671,2]
[313190568,1706908238713,-666.7,0.00027671,2]
[313190569,1706908238723,-262.64,0.00027671,2]
[313190570,1706908238732,-537.78874065,0.00027671,2]
[313190571,1706908238740,-500.0,0.00027671,2]
[313190572,1706908238749,-500.0,0.00027671,2]
[313190573,1706908238758,-500.0,0.00027671,2]
[313190574,1706908238767,-500.0,0.00027671,2]
[313190575,1706908238776,-561.57,0.00027671,2]
[313190576,1706908238795,-615.16,0.00027671,2]
[313190577,1706908238805,-616.94,0.00027671,2]
[313190578,1706908238815,-500.0,0.00027671,2]
[313190579,1706908238824,-500.0,0.00027671,2]
[313190580,1706908238834,-500.0,0.00027671,2]
[313190581,1706908238844,-512.39,0.00027671,2]
[313190582,1706908238853,-500.0,0.00027671,2]
[313190583,1706908238862,-807.2,0.00027671,2]
[313190584,1706908238870,-500.0,0.00027671,2]
[313190585,1706908238879,-500.0,0.00027671,2]
[313190586,1706908238889,-590.97,0.00027671,2]
[313190587,1706908238898,-500.0,0.00027671,2]
[313190588,1706908238907,-500.0,0.00027671,2]
[313190589,1706908238917,-1767.25,0.00027671,2]
[313190590,1706908238927,-500.0,0.00027671,2]
[313190591,1706908238936,-1836.31,0.00027671,2]
[313190592,1706908238945,-500.0,0.00027671,2]
[313190593,1706908238955,-500.0,0.00027671,2]
[313190594,1706908238964,-2610.64,0.00027671,2]
[313190595,1706908238974,-500.0,0.00027671,2]
[313190596,1706908238983,-500.0,0.00027671,2]
[313190597,1706908238992,-500.0,0.00027671,2]
[313190598,1706908239002,-500.0,0.00027671,2]
[313190599,1706908239011,-1325.85,0.00027671,2]
[313190600,1706908239020,-1273.71,0.00027671,2]
[313190601,1706908239030,-500.0,0.00027671,2]
[313190602,1706908239044,-2999.91464333,0.000279,4]
[313190603,1706908239088,-500.0,0.00027944,2]
[313190604,1706908239097,-500.0,0.00027944,2]
[313190605,1706908239106,-500.0,0.00027944,2]
[313190606,1706908239115,-500.0,0.00027944,2]
[313190607,1706908239124,-613.30077874,0.00027944,2]
[313190608,1706908239133,-500.0,0.00027944,2]
[313190609,1706908239142,-500.0,0.00027944,2]
[313190610,1706908239151,-314.75394542,0.00027944,2]
[313190611,1706908239161,-500.0,0.00027944,2]
[313190612,1706908239170,-500.0,0.00027944,2]
[313190613,1706908239179,-500.0,0.00027944,2]
[313190614,1706908239189,-541.58190157,0.00027944,2]
[313190616,1706908239198,-500.0,0.00027944,2]
[313190618,1706908239207,-180.75793257,0.00027944,2]
[313190619,1706908239216,-500.0,0.00027944,2]
[313190620,1706908239226,-500.0,0.00027944,2]
[313190621,1706908239235,-500.0,0.00027945,2]
[313190622,1706908239244,-223.08167657,0.00027945,2]
[313190623,1706908239253,-500.0,0.00027945,2]
[313190624,1706908239262,-666.7,0.00027945,2]
[313190625,1706908239271,-500.0,0.00027945,2]
[313190626,1706908239280,-500.0,0.00027945,2]
[313190627,1706908239289,-560.04,0.00027945,2]
[313190628,1706908239298,-615.16,0.00027945,2]
[313190629,1706908239307,-616.94,0.00027945,2]
[313190630,1706908239316,-500.0,0.00027945,2]
[313190631,1706908239325,-500.0,0.00027945,2]
[313190632,1706908239334,-512.39,0.00027945,2]
[313190633,1706908239343,-500.0,0.00027945,2]
[313190634,1706908239353,-807.2,0.00027945,2]
[313190635,1706908239362,-500.0,0.00027945,2]
[313190636,1706908239371,-500.0,0.00027945,2]
[313190637,1706908239381,-590.97,0.00027945,2]
[313190638,1706908239390,-500.0,0.00027945,2]
[313190639,1706908239399,-1767.25,0.00027945,2]
[313190640,1706908239411,-500.0,0.00027945,2]
[313190641,1706908239420,-1836.31,0.00027945,2]
[313190642,1706908239429,-500.0,0.00027945,2]
[313190643,1706908239439,-500.0,0.00027945,2]
[313190644,1706908239447,-2610.64,0.00027945,2]
[313190645,1706908239456,-500.0,0.00027945,2]
[313190646,1706908239466,-500.0,0.00027945,2]
[313190647,1706908239475,-500.0,0.00027945,2]
[313190648,1706908239485,-1325.85,0.00027945,2]
[313190649,1706908239495,-1273.71,0.00027945,2]
[313190650,1706908239505,-500.0,0.00027945,2]
[313190651,1706908239514,-459.20413887,0.00028,3]
[313190652,1706908239523,-1381.51598192,0.00028,2]
[313190653,1706908239532,-1922.38112409,0.00028,2]
[313190654,1706908239542,-2558.63668868,0.00028,2]
[313190655,1706908239551,-862.2026182,0.00028,4]
[313190656,1706908239561,-9228.08327352,0.00028,4]
[313190657,1706908239570,-180.56266,0.00028118,2]
[313190658,1706908239579,-45279.63397892,0.00028119,2]
[313190659,1706908239589,-159.80817864,0.00028206,2]
[313190660,1706908239604,-8.2943298,0.00028206,2]
[313190661,1706908239613,-500.0,0.00028219,2]
[313190662,1706908239622,-500.0,0.00028219,2]
[313190663,1706908239631,-666.7,0.00028219,2]
[313190664,1706908239641,-398.79,0.00028219,2]
[313190665,1706908239650,-500.0,0.00028219,2]
[313190666,1706908239659,-615.16,0.00028219,2]
[313190667,1706908239668,-616.94,0.00028219,2]
[313190668,1706908239678,-500.0,0.00028219,2]
[313190669,1706908239688,-500.0,0.00028219,2]
[313190670,1706908239697,-512.39,0.00028219,2]
[313190671,1706908239707,-500.0,0.00028219,2]
[313190672,1706908239716,-807.2,0.00028219,2]
[313190673,1706908239725,-500.0,0.00028219,2]
[313190674,1706908239734,-500.0,0.00028219,2]
[313190675,1706908239743,-590.97,0.00028219,2]
[313190676,1706908239753,-500.0,0.00028219,2]
[313190677,1706908239761,-1632.43121808,0.00028219,2]
[313190681,1706908240933,-134.81878192,0.00028219,2]
[313190682,1706908240943,-500.0,0.00028219,2]
[313190683,1706908240953,-1836.31,0.00028219,2]
[313190684,1706908240965,-500.0,0.00028219,2]
[313190685,1706908240974,-500.0,0.00028219,2]
[313190686,1706908240983,-2610.64,0.00028219,2]
[313190687,1706908240992,-401.99223904,0.00028219,2]
[313190688,1706908241003,-98.00776096,0.00028219,2]
[313190689,1706908241012,-500.0,0.00028219,2]
[313190690,1706908241021,-500.0,0.00028219,2]
[313190691,1706908241030,-1325.85,0.00028219,2]
[313190692,1706908241039,-1273.71,0.00028219,2]
[313190693,1706908241048,-500.0,0.00028219,2]
[313190694,1706908241058,-500.0,0.00028493,2]
[313190695,1706908241067,-500.0,0.00028493,2]
[313190696,1706908241077,-500.0,0.00028493,2]
[313190697,1706908241086,-615.16,0.00028493,2]
[313190698,1706908241095,-616.94,0.00028493,2]
[313190699,1706908241104,-500.0,0.00028493,2]
[313190700,1706908241114,-500.0,0.00028493,2]
[313190701,1706908241123,-512.39,0.00028493,2]
[313190702,1706908241132,-500.0,0.00028493,2]
[313190703,1706908241141,-807.2,0.00028493,2]
[313190704,1706908241151,-500.0,0.00028493,2]
[313190705,1706908241159,-500.0,0.00028493,2]
[313190706,1706908241168,-590.97,0.00028493,2]
[313190707,1706908241178,-500.0,0.00028493,2]
[313190708,1706908241187,-1767.25,0.00028493,2]
[313190709,1706908241197,-500.0,0.00028493,2]
[313190710,1706908241207,-1836.31,0.00028493,2]
[313190711,1706908241218,-500.0,0.00028493,2]
[313190712,1706908241228,-500.0,0.00028493,2]
[313190713,1706908241238,-2610.64,0.00028493,2]
[313190714,1706908241248,-313.98041812,0.00028493,2]
[313190740,1706908242990,-500.0,0.00027397,2]
[313190741,1706908242999,-186.01958188,0.00028493,2]
[313190742,1706908243008,-500.0,0.00028493,2]
[313190743,1706908243018,-500.0,0.00028493,2]
[313190744,1706908243027,-1325.85,0.00028493,2]
[313190745,1706908243036,-1273.71,0.00028493,2]
[313190746,1706908243044,-500.0,0.00028493,2]
[313190747,1706908243053,-3760.62041812,0.00028499,4]
[313190748,1706908243064,-256.17,0.00028499,4]
[313190749,1706908243076,-345.12869652,0.00028499,4]
[313190791,1706908245958,-303.204,0.00028499,4]
[313191033,1706908783191,834.45127349,0.0002849,120]
[313191154,1706909431887,-639.74017804,0.00023913,2]
[313191156,1706909431897,-905.29332772,0.00023913,2]
[313191158,1706909431906,-357.57083193,0.00023914,2]
[313191160,1706909431915,-155.0356582,0.00023914,4]
[313191162,1706909431924,-609.08979656,0.00023915,2]
[313191164,1706909431934,-1582.25059893,0.00023916,2]
[313191166,1706909431943,-4570.88662884,0.00023917,2]
[313191168,1706909431955,-1914.68161629,0.00023917,2]
[313191264,1706909438817,-13156.81933719,0.00023917,2]
[313191276,1706909438925,-1292.96430646,0.00023917,2]
[313191278,1706909438935,-197.83181426,0.00023961,2]
[313191281,1706909438945,-8750.0,0.00024061,2]
[313191282,1706909438955,-1312.5,0.00024073,2]
[313191284,1706909438964,-24900.0,0.00025513,2]
[313191287,1706909438974,-13351.86506192,0.00026129,2]
[313191289,1706909438984,-7971.79381667,0.00026131,2]
[313191291,1706909438993,-200.0,0.00026326,15]
[313191293,1706909439003,-157.23235059,0.00027396,2]
[313191295,1706909439012,-500.0,0.00027397,2]
[313191297,1706909439021,-500.0,0.00027397,2]
[313191299,1706909439031,-500.0,0.00027397,2]
[313191301,1706909439040,-500.0,0.00027397,2]
[313191303,1706909439049,-500.0,0.00027397,2]
[313191305,1706909439058,-500.0,0.00027397,2]
[313191307,1706909439067,-500.0,0.00027397,2]
[313191309,1706909439077,-500.0,0.00027397,2]
[313191311,1706909439086,-500.0,0.00027397,2]
[313191313,1706909439095,-500.0,0.00027397,2]
[313191315,1706909439105,-605.13,0.00027397,2]
[313191317,1706909439114,-1431.54,0.00027397,2]
[313191319,1706909439124,-500.0,0.00027397,2]
[313191321,1706909439133,-524.85,0.00027397,2]
[313191323,1706909439143,-500.0,0.00027397,2]
[313191325,1706909439152,-500.0,0.00027397,2]
[313191327,1706909439162,-500.0,0.00027397,2]
[313191329,1706909439172,-500.0,0.00027397,2]
[313191331,1706909439181,-500.0,0.00027397,2]
[313191332,1706909439191,-781.01,0.00027397,2]
[313191334,1706909439200,-500.0,0.00027397,2]
[313191336,1706909439209,-500.0,0.00027397,2]
[313191338,1706909439219,-500.0,0.00027397,2]
[313191340,1706909439228,-637.99,0.00027397,2]
[313191342,1706909439239,-500.0,0.00027397,2]
[313191344,1706909439248,-500.0,0.00027397,2]
[313191346,1706909439258,-500.0,0.00027397,2]
[313191348,1706909439267,-1651.1,0.00027397,2]
[313191350,1706909439276,-500.0,0.00027397,2]
[313191352,1706909439286,-1790.17,0.00027397,2]
[313191354,1706909439295,-500.0,0.00027397,2]
[313191356,1706909439304,-500.0,0.00027397,2]
[313191358,1706909439314,-500.0,0.00027397,2]
[313191361,1706909439323,-500.0,0.00027397,2]
[313191363,1706909439332,-2632.59,0.00027397,2]
[313191365,1706909439342,-500.0,0.00027397,2]
[313191366,1706909439351,-500.0,0.00027397,2]
[313191369,1706909439361,-500.0,0.00027397,2]
[313191370,1706909439370,-500.0,0.00027397,2]
[313191371,1706909439379,-1049.63,0.00027397,2]
[313191372,1706909439389,-594.95,0.00027397,2]
[313191373,1706909439398,-500.0,0.00027671,2]
[313191374,1706909439407,-500.0,0.00027671,2]
[313191375,1706909439416,-500.0,0.00027671,2]
[313191376,1706909439425,-501.66,0.00027671,2]
[313191377,1706909439434,-500.0,0.00027671,2]
[313191378,1706909439443,-605.13,0.00027671,2]
[313191379,1706909439452,-1431.54,0.00027671,2]
[313191380,1706909439461,-500.0,0.00027671,2]
[313191381,1706909439470,-524.85,0.00027671,2]
[313191382,1706909439479,-500.0,0.00027671,2]
[313191383,1706909439489,-500.0,0.00027671,2]
[313191385,1706909439498,-500.0,0.00027671,2]
[313191386,1706909439508,-500.0,0.00027671,2]
[313191389,1706909439519,-781.01,0.00027671,2]
[313191404,1706909439632,-500.0,0.00027671,2]
[313191406,1706909439663,-500.0,0.00027671,2]
[313191408,1706909439673,-637.99,0.00027671,2]
[313191410,1706909439682,-500.0,0.00027671,2]
[313191412,1706909439692,-500.0,0.00027671,2]
[313191414,1706909439701,-500.0,0.00027671,2]
[313191416,1706909439710,-1651.1,0.00027671,2]
[313191418,1706909439719,-500.0,0.00027671,2]
[313191420,1706909439728,-1790.17,0.00027671,2]
[313191422,1706909439737,-152.36221398,0.00027671,2]
[313191577,1706909441338,-500.0,0.00027397,2]
[313191579,1706909441347,-500.0,0.00027397,2]
[313191581,1706909441357,-347.63778602,0.00027671,2]
[313191583,1706909441366,-504.87,0.00027671,2]
[313191585,1706909441375,-500.0,0.00027671,2]
[313191587,1706909441384,-590.97081524,0.00027671,2]
[313191589,1706909441392,-2632.59,0.00027671,2]
[313191590,1706909441402,-500.0,0.00027671,2]
[313191593,1706909441411,-500.0,0.00027671,2]
[313191597,1706909441420,-1049.63,0.00027671,2]
[313191600,1706909441429,-594.95,0.00027671,2]
[313191601,1706909441438,-500.0,0.00027671,2]
[313191603,1706909441448,-189.3733339,0.00027943,2]
[313191605,1706909441457,-330.03174721,0.00027943,2]
[313191608,1706909441470,-1926.40816408,0.00027943,2]
[313191737,1706909443594,-500.0,0.00027397,2]
[313191738,1706909443603,-500.0,0.00027671,2]
[313191740,1706909443612,-3875.00092703,0.00027943,2]
[313191741,1706909443622,-545.11,0.00027945,2]
[313191743,1706909443631,-605.13,0.00027945,2]
[313191745,1706909443639,-1431.54,0.00027945,2]
[313191746,1706909443649,-308.70038599,0.00027945,2]
[313191747,1706909443661,-216.14961401,0.00027945,2]
[313191748,1706909443670,-500.0,0.00027945,2]
[313191749,1706909443679,-500.0,0.00027945,2]
[313191750,1706909443689,-500.0,0.00027945,2]
[313191751,1706909443699,-500.0,0.00027945,2]
[313191752,1706909443708,-781.01,0.00027945,2]
[313191753,1706909443717,-500.0,0.00027945,2]
[313191754,1706909443726,-500.0,0.00027945,2]
[313191755,1706909443736,-637.99,0.00027945,2]
[313191756,1706909443746,-500.0,0.00027945,2]
[313191757,1706909443754,-500.0,0.00027945,2]
[313191758,1706909443764,-500.0,0.00027945,2]
[313191759,1706909443774,-1651.1,0.00027945,2]
[313191760,1706909443786,-1770.05025897,0.00027945,2]
[313191761,1706909443854,-20.11974103,0.00027945,2]
[313191762,1706909443865,-500.0,0.00027945,2]
[313191763,1706909443875,-500.0,0.00027945,2]
[313191764,1706909443885,-674.11672426,0.00027945,2]
[313191776,1706909449185,-639.74017804,0.00027396,2]
[313191777,1706909449195,-653.18022028,0.00027396,2]
[313191778,1706909449204,-1958.47327574,0.00027945,2]
[313191779,1706909449213,-500.0,0.00027945,2]
[313191780,1706909449222,-500.0,0.00027945,2]
[313191781,1706909449232,-1049.63,0.00027945,2]
[313191782,1706909449243,-594.95,0.00027945,2]
[313191783,1706909449252,-500.0,0.00027945,2]
[313191784,1706909449262,-500.0,0.00027945,2]
[313191785,1706909449271,-459.20413887,0.00028,3]
[313191786,1706909449281,-1922.38112409,0.00028,2]
[313191787,1706909449289,-1381.51598192,0.00028,2]
[313191788,1706909449298,-805.61320518,0.00028,4]
[313191789,1706909449309,-3808.38679482,0.00028,4]
[313191790,1706909449318,-605.13,0.00028219,2]
[313191791,1706909449328,-1431.54,0.00028219,2]
[313191792,1706909449337,-316.54790563,0.00028219,2]
[313191793,1706909449348,-208.30209437,0.00028219,2]
[313191794,1706909449357,-95.41190563,0.00028219,2]
[313191795,1706909449369,-404.58809437,0.00028219,2]
[313191796,1706909449378,-500.0,0.00028219,2]
[313191797,1706909449387,-500.0,0.00028219,2]
[313191798,1706909449397,-500.0,0.00028219,2]
[313191799,1706909449406,-781.01,0.00028219,2]
[313191800,1706909449415,-500.0,0.00028219,2]
[313191801,1706909449424,-500.0,0.00028219,2]
[313191802,1706909449433,-305.76050541,0.00028219,2]
[313191803,1706909449444,-332.22949459,0.00028219,2]
[313191804,1706909449454,-500.0,0.00028219,2]
[313191805,1706909449464,-500.0,0.00028219,2]
[313191806,1706909449473,-28.11175336,0.00028219,2]
[313191837,1706910197691,-155.01860223,0.00021699,4]
[313191838,1706910197724,-357.57083193,0.000217,2]
[313191839,1706910197760,-609.08979656,0.000217,2]
[313191840,1706910197793,-639.74017804,0.00021701,2]
[313191841,1706910197825,-168.205256,0.00021714,2]
[313191842,1706910197859,-399.13,0.00021965,3]
[313191843,1706910197893,-683.46,0.00021965,3]
[313191844,1706910197927,-569.55,0.00021965,3]
[313191845,1706910198060,-474.62,0.00021965,3]
[313191846,1706910198094,-19463.61533524,0.00021974,2]
[313191848,1706910221786,-155.01860223,0.00020695,4]
[313191849,1706910221821,-395.52,0.00021963,3]
[313191850,1706910221855,-831.46139777,0.00021973,2]
[313191894,1706910632142,-609.08979656,0.00021466,2]
[313191895,1706910632151,-175.41,0.00021471,3]
[313191896,1706910632160,-4.42968615,0.00021478,2]
[313191897,1706910632174,-2103.1809225,0.00021478,2]
[313191898,1706910632184,-8674.23946833,0.0002148,2]
[313191899,1706910632195,-5139.58084848,0.0002148,2]
[313191938,1706910638326,-357.57083193,0.00021465,2]
[313191939,1706910638335,-300.37,0.00021471,3]
[313191941,1706910638344,-70037.7266901,0.0002148,2]
[313191943,1706910638353,-4006.28212048,0.00021481,2]
[313191945,1706910638365,-870.36637623,0.00021481,2]
[313191946,1706910638376,-3498.19003219,0.00021481,2]
[313191947,1706910638388,-11672.0050685,0.00021481,2]
[313191948,1706910638398,-5217.66047483,0.00021972,2]
[313191949,1706910638407,-585.58149653,0.00021973,2]
[313191951,1706910638416,-17017.62415205,0.00022997,2]